bitfinex-derivatives/quotes_SOLF0:USTF0_20250820
["timestamp","ask_amount","ask_price","bid_price","bid_amount"]
[1755657406026,510.66,180.97,180.8,3.02]
[1755657406339,2.49133517,180.96,180.8,3.02]
[1755657406540,510.66,180.97,180.8,3.02]
[1755657407339,510.66,180.97,180.82,5.5301]
[1755657407540,371.54,180.97,180.83,3.02]
[1755657407741,139.36,180.96,180.83,3.02]
[1755657408445,5.5291,180.87,180.83,3.02]
[1755657408642,139.3,180.89,180.83,3.02]
[1755657408841,139.28,180.89,180.83,3.02]
[1755657409949,139.28,180.89,180.8,8.5508]
[1755657410438,139.28,180.89,180.8,3.02]
[1755657411139,5.5304,180.82,180.8,3.02]
[1755657411739,139.28,180.89,180.81,3.02]
[1755657412541,139.14,180.88,180.81,3.02]
[1755657413241,5.5292,180.86,180.81,3.02]
[1755657413444,382.5918,180.97,180.82,3.02]
[1755657413445,371.54,180.97,180.82,3.02]
[1755657413650,139.14,180.96,180.82,6.83043502]
[1755657413946,139.14,180.96,180.84,5.5298]
[1755657414644,139.14,180.96,180.85,3.02]
[1755657415046,139.14,180.96,180.86,5.5291]
[1755657415748,139.14,180.96,180.85,8.5494]
[1755657415942,139.14,180.96,180.85,3.02]
[1755657416148,5.5286,180.89,180.85,3.02]
[1755657416654,5.5293,180.86,180.83,3.02]
[1755657417041,139.52,180.9,180.83,3.02]
[1755657417241,5.5297,180.85,180.79,8.5512]
[1755657417446,3.81043502,180.91,180.75,168.23221971]
[1755657417644,5.5314,180.79,180.75,168.23221971]
[1755657417853,139.64,180.83,180.76,3.02]
[1755657418049,139.68,180.82,180.76,3.02]
[1755657418351,5.5313,180.79,180.76,3.02]
[1755657418552,5.5313,180.79,180.77,3.07]
[1755657419750,139.68,180.82,180.76,3.07]
[1755657420547,5.5311,180.8,180.76,3.07]
[1755657420746,139.68,180.82,180.78,3.07]
[1755657421251,5.5316,180.78,180.73,3.07]
[1755657421452,5.5316,180.78,180.72,9.34363502]
[1755657421453,5.5316,180.78,180.74,3.07]
[1755657421652,5.5322,180.77,180.74,3.07]
[1755657421848,5.5322,180.77,180.75,3.07]
[1755657422054,139.68,180.82,180.75,3.07]
[1755657422255,5.531,180.8,180.76,3.07]
[1755657422451,139.68,180.82,180.76,3.07]
[1755657422850,5.5313,180.8,180.77,3.07]
[1755657423053,139.52,180.84,180.76,3.07]
[1755657423952,5.5306,180.82,180.76,3.07]
[1755657424151,139.52,180.84,180.76,3.07]
[1755657425347,139.52,180.84,180.78,3.07]
[1755657425348,5.5305,180.82,180.78,3.07]
[1755657425662,5.5305,180.82,180.79,3.07]
[1755657426350,5.5305,180.82,180.77,5.5318]
[1755657426652,139.52,180.84,180.74,3.07]
[1755657427060,5.5315,180.79,180.75,3.07]
[1755657427960,5.5315,180.79,180.76,3.07]
[1755657430464,5.5316,180.78,180.76,3.07]
[1755657430666,139.52,180.84,180.76,3.07]
[1755657431066,5.5315,180.79,180.76,3.07]
[1755657431664,139.52,180.84,180.74,3.81043502]
[1755657431869,139.52,180.84,180.75,3.07]
[1755657432572,5.5302,180.83,180.79,3.07]
[1755657434774,145.0498,180.84,180.81,3.07]
[1755657435376,139.52,180.84,180.74,8.33338143]
[1755657435578,139.52,180.84,180.78,3.81043502]
[1755657435980,139.52,180.84,180.8,3.07]
[1755657436278,139.52,180.84,180.79,3.07]
[1755657436479,139.52,180.84,180.81,3.07]
[1755657437681,139.52,180.84,180.78,3.81043502]
[1755657438383,145.05,180.84,180.79,5.5312]
[1755657438582,145.05,180.84,180.8,3.07]
[1755657439683,5.5302,180.83,180.8,3.07]
[1755657441587,145.0499,180.84,180.79,5.5312]
[1755657441773,145.0499,180.84,180.81,3.07]
[1755657442082,5.5302,180.83,180.78,9.34203502]
[1755657442386,139.52,180.84,180.78,3.81043502]
[1755657442785,139.52,180.84,180.76,8.602]
[1755657444078,5.5309,180.81,180.77,5.5319]
[1755657444281,139.52,180.84,180.78,3.07]
[1755657445280,5.5305,180.82,180.78,3.07]
[1755657445482,5.5305,180.82,180.79,3.07]
[1755657448790,5.5302,180.83,180.79,3.07]
[1755657449491,5.5298,180.84,180.79,8.6013]
[1755657449790,138.62,180.9,180.8,3.09]
[1755657450181,144.148,180.9,180.83,3.09]
[1755657450584,144.148,180.9,180.85,5.5293]
[1755657450792,138.62,180.9,180.86,3.09]
[1755657452793,144.1481,180.9,180.86,3.09]
[1755657453382,138.62,180.9,180.86,3.09]
[1755657454693,5.5262,180.96,180.87,3.09]
[1755657454884,16.62,181.04,180.9,3.81043502]
[1755657455088,2.50636016,181.03,180.9,6.90043502]
[1755657455292,5.5264,180.96,180.9,12.42833502]
[1755657456095,5.5259,180.97,180.91,5.5275]
[1755657458391,155.9,181.03,180.86,6.90043502]
[1755657458592,2.50165466,181.02,180.86,6.90043502]
[1755657458790,5.5269,180.94,180.89,5.5282]
[1755657459285,139.12,180.95,180.84,163.605383]
[1755657459482,155.74,180.95,180.84,163.605383]
[1755657459691,2.5019266,180.94,180.84,163.605383]
[1755657459886,155.74,180.95,180.84,163.605383]
[1755657460095,2.50165664,180.94,180.84,169.135083]
[1755657460393,155.74,180.95,180.84,169.135083]
[1755657460693,2.5020306,180.94,180.84,169.135083]
[1755657460900,155.74,180.95,180.84,169.135083]
[1755657461101,2.50203085,180.94,180.84,169.135083]
[1755657461396,2.50221606,180.93,180.84,163.605383]
[1755657461590,2.50221606,180.92,180.84,163.605383]
[1755657461792,155.74,180.95,180.84,163.605383]
[1755657461993,2.50243465,180.94,180.79,6.90043502]
[1755657462189,2.50243465,180.93,180.8,3.09]
[1755657462396,2.50243465,180.92,180.8,3.09]
[1755657462585,139.12,180.95,180.8,3.09]
[1755657462791,2.50221565,180.94,180.83,5.53]
[1755657463091,2.50221565,180.93,180.8,3.09]
[1755657463295,2.50221565,180.92,180.81,5.5306]
[1755657463598,155.74,180.95,180.81,5.5306]
[1755657463791,2.50255974,180.94,180.81,5.5306]
[1755657463991,2.50255974,180.93,180.81,5.5306]
[1755657464194,2.50255974,180.92,180.81,5.5306]
[1755657464392,155.74,180.95,180.81,5.5306]
[1755657464588,2.50269105,180.94,180.8,3.09]
[1755657464892,2.50269105,180.93,180.8,3.09]
[1755657465085,2.50269105,180.92,180.8,8.6209]
[1755657465286,2.50269105,180.91,180.8,8.6209]
[1755657465491,2.50269105,180.9,180.8,3.09]
[1755657465694,139.34,180.9,180.8,3.09]
[1755657466092,139.34,180.9,180.83,5.5298]
[1755657466292,139.34,180.9,180.83,8.6198]
[1755657466994,139.34,180.9,180.83,3.09]
[1755657467695,5.5295,180.86,180.83,3.09]
[1755657468197,5.5295,180.86,180.84,3.09]
[1755657468400,5.5295,180.85,180.84,3.09]
[1755657468698,5.5295,180.85,180.83,3.09]
[1755657469201,5.5298,180.84,180.83,3.09]
[1755657470494,5.5298,180.84,180.81,3.09]
[1755657470704,5.5298,180.84,180.8,5.5309]
[1755657470901,5.5298,180.84,180.82,3.09]
[1755657472398,5.5295,180.85,180.82,3.09]
[1755657472601,5.5295,180.85,180.83,3.09]
[1755657480996,5.5295,180.85,180.81,2.44606207]
[1755657481199,5.5298,180.84,180.82,2.88]
[1755657481708,5.5296,180.85,180.83,2.88]
[1755657484404,139.34,180.9,180.81,2.44606207]
[1755657484704,2.50175826,180.89,180.78,5.32606207]
[1755657484905,5.5303,180.83,180.78,5.32606207]
[1755657485100,5.5303,180.83,180.78,2.44606207]
[1755657485301,5.5303,180.83,180.8,2.88]
[1755657485597,5.5303,180.83,180.78,2.44606207]
[1755657485598,5.5303,180.83,180.81,2.88]
[1755657488708,5.5304,180.82,180.81,2.88]
[1755657488897,19.06606207,180.94,180.81,2.88]
[1755657489099,19.06606207,180.94,180.78,2.44606207]
[1755657489100,140.88205854,180.93,180.84,2.44606207]
[1755657489296,2.50205854,180.92,180.84,2.44606207]
[1755657489609,2.50205854,180.91,180.84,7.97586207]
[1755657489810,138.38,180.93,180.85,2.88]
[1755657490006,371.54,180.96,180.88,5.5285]
[1755657490210,371.54,180.96,180.88,2.88]
[1755657490508,371.54,180.96,180.91,2.88]
[1755657490711,5.5269,180.94,180.9,2.44606207]
[1755657490907,371.54,180.96,180.9,2.44606207]
[1755657491214,371.58,181.06,180.93,5.32606207]
[1755657491405,141.13950898,181.05,180.96,2.44606207]
[1755657491605,2.49950898,181.04,180.96,2.44606207]
[1755657491804,138.64,181.05,180.96,2.44606207]
[1755657492009,2.49937392,181.04,180.97,2.88]
[1755657492213,138.6,181.04,180.97,2.88]
[1755657492607,138.6,181.04,180.94,3.79800652]
[1755657492808,2.49784152,181.03,180.93,5.527]
[1755657493009,371.58,181.06,180.91,2.88]
[1755657493213,141.11763469,181.05,180.91,2.88]
[1755657493404,2.49763469,181.04,180.94,2.88]
[1755657493610,138.62,181.05,180.94,2.88]
[1755657493810,2.49662821,181.04,180.94,2.88]
[1755657494007,5.5255,180.99,180.94,2.88]
[1755657494211,138.62,181.05,180.95,2.88]
[1755657494413,2.4967865,181.04,180.95,2.88]
[1755657494717,5.5255,180.99,180.96,2.88]
[1755657495916,5.5256,180.98,180.96,2.88]
[1755657498014,5.5256,180.98,180.93,5.527]
[1755657498217,138.62,181.05,180.94,8.4067]
[1755657498418,138.62,181.05,180.94,3.79800652]
[1755657498613,138.62,181.05,180.95,2.88]
[1755657499012,371.58,181.06,180.95,2.88]
[1755657499217,138.34,181.05,180.95,2.88]
[1755657499418,5.5248,181.01,180.95,8.4064]
[1755657499820,5.5249,181.0,180.95,5.5264]
[1755657500118,5.5249,181.0,180.96,2.88]
[1755657500314,5.5249,181.0,180.97,2.88]
[1755657500616,371.58,181.06,180.95,5.5264]
[1755657500617,371.58,181.06,180.95,2.88]
[1755657500819,509.9,181.06,180.95,2.88]
[1755657502616,2.48991236,181.05,180.93,5.527]
[1755657502812,526.52,181.06,180.93,5.527]
[1755657503023,5.5258,180.98,180.93,8.407]
[1755657503223,5.5258,180.98,180.94,2.88]
[1755657503519,5.5273,180.93,180.91,2.88]
[1755657503728,138.3,180.99,180.87,2.88]
[1755657504231,16.62,181.05,180.9,3.79800652]
[1755657504522,138.4,181.04,180.94,5.5267]
[1755657504827,138.4,181.04,180.94,8.4067]
[1755657505219,5.5246,181.01,180.96,5.5261]
[1755657505417,138.52,181.01,180.97,2.88]
[1755657505622,138.52,181.01,180.98,2.88]
[1755657505818,138.52,181.01,180.95,5.5263]
[1755657506019,138.52,181.01,180.94,2.88]
[1755657506620,138.52,181.01,180.9,2.88]
[1755657507024,5.5263,180.96,180.91,5.5276]
[1755657507222,5.5263,180.96,180.92,2.88]
[1755657508824,138.52,181.01,180.86,3.79800652]
[1755657509024,138.52,181.01,180.94,3.01]
[1755657509623,138.52,181.01,180.93,5.527]
[1755657509923,138.52,181.01,180.93,3.01]
[1755657510324,138.42,181.01,180.94,6.80800652]
[1755657511029,5.5247,181.01,180.95,8.5363]
[1755657512528,5.5251,181.0,180.95,3.01]
[1755657512731,138.46,181.02,180.92,3.01]
[1755657513232,5.5247,181.01,180.95,5.5262]
[1755657513423,5.5247,181.01,180.97,3.01]
[1755657513623,138.46,181.02,180.97,3.01]
[1755657514925,138.46,181.02,180.98,3.01]
[1755657516221,5.5247,181.01,180.98,3.01]
[1755657516525,138.46,181.02,180.88,4.52294641]
[1755657516732,155.08,181.02,180.87,3.01]
[1755657517126,2.48378399,181.01,180.87,8.5388]
[1755657517429,2.48378399,181.0,180.87,3.01]
[1755657517629,158.87800652,181.02,180.87,3.01]
[1755657517826,2.48420168,181.01,180.87,3.01]
[1755657518022,2.48420168,181.0,180.87,3.01]
[1755657518225,2.48421993,180.99,180.87,3.01]
[1755657518424,124.0,181.05,180.87,3.01]
[1755657518425,159.94904567,180.98,180.87,3.01]
[1755657518725,157.50491384,180.97,180.84,2.44439965]
[1755657518930,155.02,180.97,180.84,2.44439965]
[1755657519632,155.02,180.97,180.85,5.5294]
[1755657520225,2.44439965,180.94,180.76,4.52294641]
[1755657520537,2.48576881,180.93,180.78,3.01]
[1755657520740,371.32,180.93,180.78,3.01]
[1755657521427,387.94,180.93,180.78,3.01]
[1755657521931,371.32,180.93,180.78,3.01]
[1755657522233,138.56,180.92,180.81,5.5304]
[1755657522432,138.56,180.92,180.78,3.01]
[1755657523140,138.56,180.92,180.75,3.80576431]
[1755657523432,138.56,180.92,180.76,3.01]
[1755657523631,2.48550629,180.91,180.78,3.01]
[1755657523831,138.56,180.92,180.78,3.01]
[1755657524137,138.56,180.92,180.78,8.5416]
[1755657525331,5.5305,180.82,180.78,5.5316]
[1755657525531,5.5305,180.82,180.81,3.01]
[1755657527939,138.54,180.84,180.74,3.01]
[1755657528639,5.5315,180.79,180.75,3.01]
[1755657528940,138.54,180.84,180.75,3.01]
[1755657530437,5.5319,180.78,180.75,3.01]
[1755657530739,138.54,180.84,180.76,3.01]
[1755657531130,20.42576431,180.91,180.76,3.01]
[1755657531341,16.62,180.89,180.76,3.01]
[1755657531639,16.62,180.89,180.79,3.01]
[1755657531840,16.62,180.89,180.76,3.01]
[1755657532137,5.5309,180.81,180.76,8.5422]
[1755657532340,138.46,180.82,180.76,3.01]
[1755657533339,138.46,180.82,180.74,3.01]
[1755657534139,5.5319,180.78,180.75,3.01]
[1755657534340,138.46,180.82,180.75,3.01]
[1755657535831,16.62,180.9,180.75,3.01]
[1755657536036,16.62,180.86,180.75,3.01]
[1755657536638,5.5315,180.79,180.76,3.01]
[1755657536833,138.4,180.81,180.76,3.01]
[1755657537041,5.5313,180.79,180.77,3.01]
[1755657537439,138.4,180.81,180.73,165.10647521]
[1755657537642,16.62,180.88,180.74,3.01]
[1755657537845,138.42,180.87,180.74,3.01]
[1755657538238,5.5303,180.83,180.77,5.5319]
[1755657538642,138.42,180.87,180.79,3.1]
[1755657538841,138.44,180.86,180.79,3.1]
[1755657539039,16.62,180.92,180.79,3.1]
[1755657539238,155.06,180.91,180.79,3.1]
[1755657539440,5.5301,180.83,180.78,5.5315]
[1755657539638,5.5301,180.83,180.8,3.1]
[1755657539942,5.5307,180.81,180.8,3.1]
[1755657540145,138.44,180.86,180.8,3.1]
[1755657540547,371.32,180.93,180.82,3.1]
[1755657540740,138.46,180.92,180.82,3.1]
[1755657541143,138.46,180.91,180.82,3.1]
[1755657541543,5.5289,180.87,180.82,8.6304]
[1755657541740,5.5289,180.87,180.82,5.5304]
[1755657542147,5.5289,180.87,180.86,3.1]
[1755657543143,138.46,180.91,180.84,3.1]
[1755657543547,138.46,180.91,180.84,5.54519097]
[1755657544340,138.46,180.91,180.83,3.1]
[1755657544850,5.5282,180.9,180.84,5.5298]
[1755657545845,5.5283,180.89,180.83,8.63]
[1755657546251,138.46,180.91,180.83,3.1]
[1755657547150,5.5293,180.86,180.84,3.1]
[1755657547351,138.46,180.91,180.84,3.1]
[1755657547849,5.5294,180.86,180.85,3.1]
[1755657548448,5.5289,180.87,180.85,3.1]
[1755657548643,138.46,180.91,180.86,3.1]
[1755657549043,5.5288,180.88,180.86,3.1]
[1755657549248,371.32,180.93,180.87,3.1]
[1755657549444,138.36,180.92,180.88,3.1]
[1755657549644,143.8876,180.92,180.88,3.1]
[1755657550051,5.5276,180.92,180.88,3.1]
[1755657550250,143.8876,180.92,180.88,3.1]
[1755657550445,138.36,180.92,180.88,3.1]
[1755657550645,16.62,181.02,180.88,3.1]
[1755657550850,154.98,181.01,180.88,3.1]
[1755657551051,5.5263,180.96,180.88,3.1]
[1755657551245,138.36,180.95,180.88,3.1]
[1755657551442,138.36,180.95,180.9,5.5277]
[1755657551642,143.8864,180.95,180.92,3.1]
[1755657552751,143.8864,180.95,180.91,3.1]
[1755657552752,138.36,180.95,180.91,3.1]
[1755657553148,138.36,180.95,180.92,3.1]
[1755657553345,138.36,180.95,180.9,3.80328281]
[1755657553550,138.36,180.95,180.93,3.1]
[1755657553950,138.36,180.95,180.94,3.1]
[1755657554151,138.36,180.95,180.91,3.1]
[1755657554350,138.36,180.95,180.93,3.1]
[1755657556455,143.8865,180.95,180.93,3.1]
[1755657557652,143.8865,180.95,180.94,3.1]
[1755657557857,371.58,181.03,180.94,3.1]
[1755657558053,138.34,181.0,180.94,3.1]
[1755657558353,16.62,180.99,180.86,3.1]
[1755657558553,138.34,181.0,180.82,8.32622922]
[1755657558849,5.5276,180.92,180.85,5.5293]
[1755657559055,5.5276,180.92,180.86,3.1]
[1755657559451,5.5277,180.91,180.85,5.5293]
[1755657559856,16.62,180.99,180.87,3.1]
[1755657560258,5.5277,180.91,180.83,3.1]
[1755657560456,138.34,181.0,180.87,3.1]
[1755657560857,5.5258,180.97,180.91,3.1]
[1755657561058,138.34,181.0,180.91,3.1]
[1755657562261,5.5267,180.95,180.89,5.5282]
[1755657562461,5.5267,180.95,180.92,3.1]
[1755657563862,138.34,181.0,180.92,3.1]
[1755657565361,138.34,181.0,180.9,2.44337423]
[1755657565963,5.5268,180.94,180.91,3.1]
[1755657568255,2.44337423,181.08,180.94,2.93]
[1755657568459,138.66,181.07,180.97,2.44337423]
[1755657568762,5.5237,181.04,180.97,5.37337423]
[1755657568962,5.5237,181.04,181.0,2.44337423]
[1755657569164,371.42,181.13,181.01,8.4546]
[1755657569468,138.78,181.12,181.03,2.44337423]
[1755657570165,138.78,181.11,181.03,2.44337423]
[1755657571364,0.04237965,181.09,181.03,2.44337423]
[1755657571569,0.04237965,181.09,181.05,0.03540117]
[1755657572271,5.5228,181.07,181.05,0.03540117]
[1755657574075,5.5225,181.08,181.05,0.03540117]
[1755657574478,5.5225,181.08,181.05,2.96540117]
[1755657575884,5.5228,181.07,181.05,2.96540117]
[1755657576177,0.04237965,181.09,181.05,2.96540117]
[1755657576377,5.5227,181.08,181.05,2.96540117]
[1755657576972,0.04237965,181.09,181.05,2.96540117]
[1755657576973,5.5231,181.06,181.05,0.03540117]
[1755657577280,0.04237965,181.09,180.97,2.93]
[1755657577674,155.14,181.11,180.97,2.93]
[1755657577870,158.93573013,181.11,180.97,2.93]
[1755657578272,0.03850589,181.06,180.97,2.93]
[1755657578477,138.66,181.05,180.97,2.93]
[1755657578677,138.66,181.05,180.97,8.4558]
[1755657578880,138.66,181.05,180.97,2.93]
[1755657584581,138.66,181.05,180.93,2.93]
[1755657585488,5.5259,180.97,180.93,2.93]
[1755657585792,5.5259,180.97,180.94,2.93]
[1755657586188,5.56633962,180.97,180.94,2.93]
[1755657586689,0.04043962,180.97,180.91,2.93]
[1755657586988,0.04043962,180.97,180.92,5.5273]
[1755657587295,5.56633962,180.97,180.94,2.93]
[1755657588291,0.04043962,180.97,180.87,2.93]
[1755657588785,5.5259,180.97,180.91,5.5274]
[1755657588988,0.04035139,180.94,180.93,2.93]
[1755657591091,138.39,181.03,180.93,2.93]
[1755657592188,5.5252,180.99,180.93,8.457]
[1755657593993,5.5252,180.99,180.93,2.93]
[1755657594193,0.03,181.0,180.89,3.79573013]
[1755657594400,0.03,181.0,180.89,2.93]
[1755657594704,5.5267,180.95,180.89,2.93]
[1755657594892,0.03,180.97,180.89,2.93]
[1755657595095,0.03,180.97,180.86,2.93]
[1755657595292,5.5277,180.91,180.85,179.13849658]
[1755657595488,0.03,180.94,180.87,2.93]
[1755657595894,5.5274,180.92,180.87,2.93]
[1755657596097,5.5274,180.92,180.88,2.93]
[1755657596297,5.5574,180.92,180.88,2.93]
[1755657597302,0.03,180.92,180.88,2.93]
[1755657597494,0.03,180.92,180.85,182.06849658]
[1755657597701,0.03,180.92,180.85,187.59769658]
[1755657598005,5.5279,180.91,180.85,182.06849658]
[1755657598303,0.03,180.92,180.86,5.5291]
[1755657598504,5.527,180.94,180.86,3.02]
[1755657598900,0.04,180.95,180.88,5.5285]
[1755657599205,5.5272,180.93,180.88,5.5285]
[1755657599405,0.04,180.95,180.88,5.5285]
[1755657599904,0.04,180.95,180.91,3.02]
[1755657600105,0.04,180.98,180.91,3.02]
[1755657600298,0.04,180.93,180.85,176.69469402]
[1755657600499,0.04,180.93,180.83,3.02]
[1755657600906,0.04,180.93,180.83,8.55]
[1755657601410,0.04,180.93,180.83,3.02]
[1755657603211,0.04,180.93,180.84,3.02]
[1755657603710,5.5303,180.83,180.81,3.02]
[1755657604722,0.04,180.88,180.81,3.02]
[1755657605209,5.5304,180.82,180.81,3.02]
[1755657605601,0.04,180.88,180.81,3.02]
[1755657605809,5.5302,180.83,180.81,3.02]
[1755657606113,0.04,180.86,180.78,3.02]
[1755657606308,5.5307,180.82,180.78,3.02]
[1755657606513,0.04,180.86,180.79,3.02]
[1755657607911,0.04,180.9,180.8,2.44380256]
[1755657608215,0.04,180.9,180.81,3.02]
[1755657609203,5.53,180.84,180.81,3.02]
[1755657609815,5.53,180.84,180.82,3.02]
[1755657611916,0.04,180.91,180.79,2.44380256]
[1755657612108,2.44380256,180.87,180.73,2.44380256]
[1755657612312,0.04,180.83,180.74,3.02]
[1755657612506,0.04,180.83,180.7,5.46380256]
[1755657613318,2.44380256,180.81,180.67,171.95957684]
[1755657613513,0.04,180.8,180.69,5.5343]
[1755657613820,0.04,180.8,180.68,3.02]
[1755657614715,0.04,180.8,180.71,3.02]
[1755657620017,5.5331,180.74,180.68,5.5345]
[1755657620211,5.5331,180.74,180.72,3.02]
[1755657620618,5.5326,180.75,180.69,5.5343]
[1755657620916,5.5326,180.75,180.73,3.02]
[1755657621112,0.04,180.8,180.65,3.80987576]
[1755657621113,0.03,180.78,180.7,3.02]
[1755657622113,0.03,180.78,180.67,3.02]
[1755657623513,0.03,180.78,180.67,8.5549]
[1755657624419,0.03,180.78,180.67,3.02]
[1755657627321,0.03,180.78,180.7,3.02]
[1755657628718,138.42,180.79,180.7,3.02]
[1755657628920,0.05,180.78,180.65,3.13]
[1755657629418,5.5341,180.7,180.67,3.13]
[1755657629618,5.5341,180.7,180.63,3.13]
[1755657629819,155.05,180.79,180.63,3.13]
[1755657630020,5.5335,180.72,180.68,3.13]
[1755657630223,5.5335,180.72,180.7,3.13]
[1755657630426,5.5335,180.72,180.71,3.13]
[1755657631017,5.5332,180.73,180.69,3.13]
[1755657631323,0.05,180.79,180.68,3.80987576]
[1755657631722,0.05,180.79,180.62,174.06413437]
[1755657631723,0.05,180.79,180.69,3.13]
[1755657632427,5.5341,180.7,180.69,3.13]
[1755657632920,5.5346,180.69,180.65,3.13]
[1755657633228,5.5346,180.69,180.66,3.13]
[1755657633426,5.5346,180.69,180.64,5.5358]
[1755657633626,5.5346,180.69,180.67,3.13]
[1755657633920,5.5347,180.68,180.66,3.13]
[1755657634128,0.05,180.74,180.67,3.13]
[1755657634625,0.05,180.78,180.67,3.13]
[1755657635529,0.05,180.78,180.68,3.13]
[1755657636129,0.05,180.78,180.7,3.13]
[1755657636828,5.5334,180.73,180.68,5.5346]
[1755657637129,5.5334,180.73,180.71,3.13]
[1755657637531,5.5329,180.74,180.72,3.13]
[1755657637724,0.05,180.81,180.71,3.13]
[1755657637925,0.05,180.81,180.67,3.13]
[1755657638124,0.05,180.79,180.67,5.5793846]
[1755657638628,5.5343,180.7,180.67,5.5793846]
[1755657638832,5.5343,180.7,180.69,3.13]
[1755657639230,5.5347,180.68,180.65,3.13]
[1755657639430,0.05,180.74,180.66,3.13]
[1755657639626,5.5336,180.72,180.66,3.13]
[1755657639830,0.05,180.74,180.66,3.13]
[1755657641026,5.535,180.67,180.66,3.13]
[1755657642938,0.05,180.72,180.63,3.13]
[1755657644440,5.5359,180.64,180.63,3.13]
[1755657645134,5.5359,180.64,180.59,5.5374]
[1755657645339,5.5362,180.63,180.59,5.5374]
[1755657645536,5.5362,180.63,180.61,3.13]
[1755657646042,0.05,180.66,180.59,3.13]
[1755657646438,5.537,180.61,180.58,2.4493846]
[1755657646638,5.537,180.61,180.6,3.13]
[1755657647044,5.5366,180.62,180.6,3.13]
[1755657647350,0.05,180.7,180.59,3.13]
[1755657647644,138.51,180.7,180.59,3.13]
[1755657648046,138.53,180.7,180.59,8.6672]
[1755657648441,138.53,180.7,180.6,3.13]
[1755657648647,5.5361,180.64,180.62,3.13]
[1755657649149,5.5361,180.64,180.63,3.13]
[1755657650645,5.5362,180.63,180.6,3.13]
[1755657650850,5.5362,180.63,180.59,5.5372]
[1755657651051,0.05,180.68,180.58,3.13]
[1755657651253,5.5366,180.62,180.57,3.13]
[1755657651445,0.05,180.66,180.58,3.13]
[1755657652346,5.5364,180.63,180.58,3.13]
[1755657652545,5.5364,180.63,180.59,3.13]
[1755657652745,5.5364,180.63,180.6,3.13]
[1755657653341,5.5365,180.62,180.6,3.13]
[1755657653542,0.05,180.66,180.6,3.13]
[1755657653950,5.5362,180.63,180.6,3.13]
[1755657654150,5.5362,180.63,180.59,3.13]
[1755657654354,0.05,180.69,180.6,3.13]
[1755657654546,138.5,180.7,180.62,2.4493846]
[1755657654753,138.5,180.7,180.63,3.13]
[1755657655055,0.05,180.73,180.63,3.13]
[1755657655255,138.55,180.73,180.63,3.13]
[1755657656458,138.55,180.73,180.62,2.4493846]
[1755657656459,5.5343,180.7,180.65,5.5356]
[1755657656653,138.55,180.73,180.63,3.13]